[Event "Polofinale MCR junioru 2023"]
[Site "Czech Republic"]
[Date "2023.11.16"]
[Round "7.21"]
[White "Roubal, Matyas"]
[Black "Zezula, Jakub"]
[Result "1/2-1/2"]
[TimeControl "90 min per 40 moves + 15 min + 30 sec / move from move 1"]
[WhiteFideId "23727152"]
[BlackFideId "23723203"]
[WhiteElo "1837"]
[BlackElo "2002"]

1. e4 {[%clk 01:30:59]} {[%emt 00:00:01]} e5 {[%clk 01:30:47]} {[%emt
00:00:13]} 2. Nf3 {[%clk 01:31:25]} {[%emt 00:00:03]} Nc6 {[%clk 01:31:12]}
{[%emt 00:00:05]} 3. d4 {[%clk 01:31:52]} {[%emt 00:00:03]} exd4 {[%clk
01:31:36]} {[%emt 00:00:06]} 4. Nxd4 {[%clk 01:32:20]} {[%emt 00:00:03]} Nf6
{[%clk 01:31:49]} {[%emt 00:00:17]} 5. Nxc6 {[%clk 01:32:17]} {[%emt 00:00:33]}
bxc6 {[%clk 01:32:13]} {[%emt 00:00:07]} 6. e5 {[%clk 01:32:43]} {[%emt
00:00:04]} Qe7 {[%clk 01:32:38]} {[%emt 00:00:05]} 7. Qe2 {[%clk 01:33:10]}
{[%emt 00:00:03]} Nd5 {[%clk 01:33:02]} {[%emt 00:00:06]} 8. g3 {[%clk
01:33:36]} {[%emt 00:00:04]} g6 {[%clk 01:30:36]} {[%emt 00:02:55]} 9. c4
{[%clk 01:34:01]} {[%emt 00:00:06]} Ba6 {[%clk 01:30:26]} {[%emt 00:00:39]} 10.
b3 {[%clk 01:34:28]} {[%emt 00:00:04]} Bg7 {[%clk 01:29:14]} {[%emt 00:01:42]}
11. Bb2 {[%clk 01:34:43]} {[%emt 00:00:15]} O-O {[%clk 01:26:47]} {[%emt
00:02:56]} 12. Bg2 {[%clk 01:35:05]} {[%emt 00:00:09]} Rfe8 {[%clk 01:26:52]}
{[%emt 00:00:25]} 13. O-O {[%clk 01:35:31]} {[%emt 00:00:04]} Bxe5 {[%clk
01:26:57]} {[%emt 00:00:25]} 14. Qxe5 {[%clk 01:35:11]} {[%emt 00:00:50]} Qxe5
{[%clk 01:27:17]} {[%emt 00:00:09]} 15. Bxe5 {[%clk 01:35:39]} {[%emt
00:00:02]} Rxe5 {[%clk 01:27:38]} {[%emt 00:00:09]} 16. cxd5 {[%clk 01:36:06]}
{[%emt 00:00:03]} Bxf1 {[%clk 01:27:59]} {[%emt 00:00:08]} 17. Kxf1 {[%clk
01:36:35]} {[%emt 00:00:02]} cxd5 {[%clk 01:27:46]} {[%emt 00:00:43]} 18. Nc3
{[%clk 01:37:03]} {[%emt 00:00:01]} c6 {[%clk 01:28:07]} {[%emt 00:00:09]} 19.
Ne2 {[%clk 01:37:11]} {[%emt 00:00:23]} Kf8 {[%clk 01:26:49]} {[%emt 00:01:47]}
20. Nf4 {[%clk 01:35:49]} {[%emt 00:01:53]} a5 {[%clk 01:25:17]} {[%emt
00:02:01]} 21. Nd3 {[%clk 01:36:05]} {[%emt 00:00:14]} Re7 {[%clk 01:23:52]}
{[%emt 00:01:55]} 22. Rc1 {[%clk 01:35:47]} {[%emt 00:00:48]} Ke8 {[%clk
01:21:56]} {[%emt 00:02:26]} 23. Bf3 {[%clk 01:35:09]} {[%emt 00:01:08]} Kd8
{[%clk 01:19:50]} {[%emt 00:02:35]} 24. Be2 {[%clk 01:34:28]} {[%emt 00:01:12]}
Kc7 {[%clk 01:17:13]} {[%emt 00:03:07]} 25. Ke1 {[%clk 01:32:06]} {[%emt
00:02:53]} h5 {[%clk 01:16:48]} {[%emt 00:00:54]} 26. Kd2 {[%clk 01:32:18]}
{[%emt 00:00:19]} Kd6 {[%clk 01:05:06]} {[%emt 00:12:11]} 27. Bf3 {[%clk
01:31:47]} {[%emt 00:01:01]} Re6 {[%clk 00:58:56]} {[%emt 00:06:39]} 28. Rc3
{[%clk 01:25:08]} {[%emt 00:07:09]} Ree8 {[%clk 00:47:38]} {[%emt 00:11:48]} 29.
Nc5 {[%clk 01:23:21]} {[%emt 00:02:17]} Re7 {[%clk 00:44:01]} {[%emt 00:04:08]}
30. Nd3 {[%clk 01:21:07]} {[%emt 00:02:45]} Rae8 {[%clk 00:43:59]} {[%emt
00:00:31]} 31. Rc5 {[%clk 01:20:48]} {[%emt 00:00:49]} Ra8 {[%clk 00:42:48]}
{[%emt 00:01:41]} 32. Kc3 {[%clk 01:20:03]} {[%emt 00:01:15]} Re6 {[%clk
00:39:00]} {[%emt 00:04:18]} 33. Kd4 {[%clk 01:19:15]} {[%emt 00:01:18]} Ra7
{[%clk 00:37:53]} {[%emt 00:01:37]} 34. Rc2 {[%clk 01:13:55]} {[%emt 00:05:50]}
Re8 {[%clk 00:37:44]} {[%emt 00:00:39]} 35. Bg2 {[%clk 01:13:19]} {[%emt
00:01:06]} h4 {[%clk 00:35:07]} {[%emt 00:03:07]} 36. Bf3 {[%clk 01:08:02]}
{[%emt 00:05:47]} hxg3 {[%clk 00:35:00]} {[%emt 00:00:37]} 1/2-1/2

[Event "Polofinale MCR junioru 2023"]
[Site "Czech Republic"]
[Date "2023.11.16"]
[Round "7.22"]
[White "Veny, Jaume"]
[Black "Simunek, Jakub Simon"]
[Result "0-1"]
[TimeControl "90 min per 40 moves + 15 min + 30 sec / move from move 1"]
[WhiteFideId "397792"]
[BlackFideId "23709464"]
[WhiteElo "1729"]
[BlackElo "1970"]

1. d4 {[%clk 01:30:34]} {[%emt 00:00:25]} d5 {[%clk 01:29:53]} {[%emt
00:01:07]} 2. c4 {[%clk 01:30:26]} {[%emt 00:00:38]} c6 {[%clk 01:30:21]}
{[%emt 00:00:02]} 3. cxd5 {[%clk 01:29:13]} {[%emt 00:01:43]} cxd5 {[%clk
01:30:48]} {[%emt 00:00:04]} 4. Nc3 {[%clk 01:29:20]} {[%emt 00:00:23]} Nf6
{[%clk 01:30:54]} {[%emt 00:00:24]} 5. Bf4 {[%clk 01:29:34]} {[%emt 00:00:16]}
Nc6 {[%clk 01:30:37]} {[%emt 00:00:47]} 6. Nf3 {[%clk 01:28:34]} {[%emt
00:01:29]} a6 {[%clk 01:29:53]} {[%emt 00:01:15]} 7. e3 {[%clk 01:27:59]}
{[%emt 00:01:05]} Bg4 {[%clk 01:29:54]} {[%emt 00:00:28]} 8. Be2 {[%clk
01:27:01]} {[%emt 00:01:28]} e6 {[%clk 01:28:10]} {[%emt 00:02:15]} 9. O-O
{[%clk 01:27:12]} {[%emt 00:00:18]} Bd6 {[%clk 01:25:21]} {[%emt 00:03:19]} 10.
Bxd6 {[%clk 01:14:38]} {[%emt 00:13:04]} Qxd6 {[%clk 01:25:48]} {[%emt
00:00:02]} 11. h3 {[%clk 01:14:43]} {[%emt 00:00:25]} Bxf3 {[%clk 01:25:21]}
{[%emt 00:00:58]} 12. Bxf3 {[%clk 01:15:06]} {[%emt 00:00:07]} O-O {[%clk
01:25:23]} {[%emt 00:00:29]} 13. Rc1 {[%clk 01:14:32]} {[%emt 00:01:04]} Rac8
{[%clk 01:13:31]} {[%emt 00:12:22]} 14. Na4 {[%clk 01:01:13]} {[%emt 00:13:48]}
Nd7 {[%clk 01:07:26]} {[%emt 00:06:35]} 15. Qd2 {[%clk 00:55:34]} {[%emt
00:06:09]} Ne7 {[%clk 00:54:11]} {[%emt 00:13:46]} 16. b4 {[%clk 00:46:52]}
{[%emt 00:09:12]} b5 {[%clk 00:48:24]} {[%emt 00:06:17]} 17. Nc5 {[%clk
00:46:25]} {[%emt 00:00:57]} Nb6 {[%clk 00:48:38]} {[%emt 00:00:17]} 18. Ra1
{[%clk 00:42:22]} {[%emt 00:04:32]} Rc6 {[%clk 00:43:01]} {[%emt 00:06:07]} 19.
Qb2 {[%clk 00:38:42]} {[%emt 00:04:09]} Rfc8 {[%clk 00:34:04]} {[%emt
00:09:28]} 20. Rfd1 {[%clk 00:37:27]} {[%emt 00:01:44]} Ng6 {[%clk 00:25:49]}
{[%emt 00:08:46]} 21. Bh5 {[%clk 00:33:45]} {[%emt 00:04:12]} Nh4 {[%clk
00:19:10]} {[%emt 00:07:08]} 22. Qe2 {[%clk 00:32:41]} {[%emt 00:01:33]} g6
{[%clk 00:16:08]} {[%emt 00:03:34]} 23. Bf3 {[%clk 00:32:39]} {[%emt 00:00:31]}
Nc4 {[%clk 00:14:28]} {[%emt 00:02:10]} 24. g3 {[%clk 00:30:53]} {[%emt
00:02:15]} Nf5 {[%clk 00:14:16]} {[%emt 00:00:43]} 25. Kg2 {[%clk 00:30:18]}
{[%emt 00:01:04]} h5 {[%clk 00:04:29]} {[%emt 00:10:17]} 26. Rd3 {[%clk
00:24:41]} {[%emt 00:06:07]} Ra8 {[%clk 00:03:39]} {[%emt 00:01:21]} 27. Rb3
{[%clk 00:22:30]} {[%emt 00:02:40]} Rb6 {[%clk 00:01:13]} {[%emt 00:02:57]} 28.
a4 {[%clk 00:19:04]} {[%emt 00:03:55]} bxa4 {[%clk 00:01:38]} {[%emt 00:00:05]}
29. Rxa4 {[%clk 00:19:28]} {[%emt 00:00:06]} Rab8 {[%clk 00:01:51]} {[%emt
00:00:17]} 30. Qe1 {[%clk 00:12:08]} {[%emt 00:07:49]} a5 {[%clk 00:00:44]}
{[%emt 00:01:37]} 31. Be2 {[%clk 00:12:10]} {[%emt 00:00:28]} Qc6 {[%clk
00:00:45]} {[%emt 00:00:29]} 32. Kh2 {[%clk 00:11:33]} {[%emt 00:01:06]} Nfd6
{[%clk 00:00:53]} {[%emt 00:00:23]} 33. Ra1 {[%clk 00:09:11]} {[%emt 00:02:52]}
Rxb4 {[%clk 00:00:49]} {[%emt 00:00:34]} 34. Rxb4 {[%clk 00:07:48]} {[%emt
00:01:53]} Rxb4 {[%clk 00:01:12]} {[%emt 00:00:07]} 35. Bd1 {[%clk 00:07:32]}
{[%emt 00:00:45]} Qb6 {[%clk 00:01:04]} {[%emt 00:00:39]} 36. Qe2 {[%clk
00:06:20]} {[%emt 00:01:42]} Rb2 {[%clk 00:01:00]} {[%emt 00:00:35]} 37. Qf3
{[%clk 00:06:35]} {[%emt 00:00:14]} Qc6 {[%clk 00:00:43]} {[%emt 00:00:48]} 38.
Ba4 {[%clk 00:06:31]} {[%emt 00:00:33]} Qc7 {[%clk 00:01:05]} {[%emt 00:00:09]}
39. Rc1 {[%clk 00:02:35]} {[%emt 00:04:26]} h4 {[%clk 00:01:06]} {[%emt
00:00:30]} 40. Bd7 {[%clk 00:01:25]} {[%emt 00:01:39]} Nf5 {[%clk 00:00:41]}
{[%emt 00:00:55]} 41. Kg1 {[%clk 00:11:32]} {[%emt 00:05:53]} hxg3 {[%clk
00:15:29]} {[%emt 00:01:13]} 42. fxg3 {[%clk 00:11:56]} {[%emt 00:00:06]} Qxg3+
{[%clk 00:14:51]} {[%emt 00:01:08]} 43. Qxg3 {[%clk 00:12:16]} {[%emt
00:00:10]} Nxg3 {[%clk 00:15:16]} {[%emt 00:00:04]} 0-1

[Event "Polofinale MCR junioru 2023"]
[Site "Czech Republic"]
[Date "2023.11.16"]
[Round "7.23"]
[White "Nespurek, Jakub"]
[Black "Benes, Jachym"]
[Result "1/2-1/2"]
[TimeControl "90 min per 40 moves + 15 min + 30 sec / move from move 1"]
[WhiteFideId "391816"]
[BlackFideId "23710870"]
[WhiteElo "1680"]
[BlackElo "1950"]

1. e4 {[%clk 01:30:50]} {[%emt 00:00:09]} e6 {[%clk 01:26:05]} {[%emt
00:04:56]} 2. Bb5 {[%clk 01:30:41]} {[%emt 00:00:39]} a6 {[%clk 01:25:01]}
{[%emt 00:01:34]} 3. Ba4 {[%clk 01:31:05]} {[%emt 00:00:06]} b5 {[%clk
01:24:40]} {[%emt 00:00:51]} 4. Bb3 {[%clk 01:31:30]} {[%emt 00:00:04]} Bb7
{[%clk 01:25:08]} {[%emt 00:00:03]} 5. d3 {[%clk 01:31:07]} {[%emt 00:00:53]}
Nf6 {[%clk 01:24:25]} {[%emt 00:01:12]} 6. Nf3 {[%clk 01:30:24]} {[%emt
00:01:12]} d5 {[%clk 01:23:56]} {[%emt 00:01:00]} 7. e5 {[%clk 01:28:47]}
{[%emt 00:02:07]} Nfd7 {[%clk 01:23:51]} {[%emt 00:00:35]} 8. d4 {[%clk
01:28:53]} {[%emt 00:00:24]} c5 {[%clk 01:24:15]} {[%emt 00:00:06]} 9. c3
{[%clk 01:28:42]} {[%emt 00:00:41]} Nc6 {[%clk 01:24:34]} {[%emt 00:00:11]} 10.
O-O {[%clk 01:27:11]} {[%emt 00:02:01]} Be7 {[%clk 01:24:42]} {[%emt 00:00:22]}
11. h3 {[%clk 01:24:16]} {[%emt 00:03:24]} Qb6 {[%clk 01:17:58]} {[%emt
00:07:14]} 12. Be3 {[%clk 01:24:03]} {[%emt 00:00:43]} Rc8 {[%clk 01:13:00]}
{[%emt 00:05:28]} 13. Nh2 {[%clk 01:19:02]} {[%emt 00:05:30]} Ndb8 {[%clk
01:09:06]} {[%emt 00:04:25]} 14. Qg4 {[%clk 01:11:17]} {[%emt 00:08:16]} g6
{[%clk 01:08:21]} {[%emt 00:01:16]} 15. Qd1 {[%clk 01:04:39]} {[%emt 00:07:07]}
Na5 {[%clk 01:06:27]} {[%emt 00:02:25]} 16. Nd2 {[%clk 00:57:36]} {[%emt
00:07:32]} Nbc6 {[%clk 01:06:37]} {[%emt 00:00:20]} 17. Ndf3 {[%clk 00:56:51]}
{[%emt 00:01:15]} Nc4 {[%clk 01:00:59]} {[%emt 00:06:08]} 18. Bxc4 {[%clk
00:55:35]} {[%emt 00:01:45]} dxc4 {[%clk 01:00:36]} {[%emt 00:00:53]} 19. Ng4
{[%clk 00:55:00]} {[%emt 00:01:05]} cxd4 {[%clk 00:54:17]} {[%emt 00:06:50]} 20.
Nxd4 {[%clk 00:53:58]} {[%emt 00:01:32]} Nxd4 {[%clk 00:53:01]} {[%emt
00:01:46]} 21. Bxd4 {[%clk 00:52:54]} {[%emt 00:01:34]} Qc6 {[%clk 00:53:15]}
{[%emt 00:00:16]} 22. f3 {[%clk 00:51:16]} {[%emt 00:02:07]} O-O {[%clk
00:38:48]} {[%emt 00:14:57]} 23. Nf6+ {[%clk 00:50:35]} {[%emt 00:01:12]} Kg7
{[%clk 00:38:15]} {[%emt 00:01:03]} 24. Qd2 {[%clk 00:46:50]} {[%emt 00:04:15]}
h6 {[%clk 00:38:08]} {[%emt 00:00:38]} 25. Qf4 {[%clk 00:34:18]} {[%emt
00:13:01]} Rcd8 {[%clk 00:31:49]} {[%emt 00:06:49]} 26. Ne4 {[%clk 00:31:26]}
{[%emt 00:03:22]} Qc7 {[%clk 00:28:38]} {[%emt 00:03:42]} 27. Nd6 {[%clk
00:29:00]} {[%emt 00:02:55]} Kh7 {[%clk 00:22:44]} {[%emt 00:06:24]} 28. h4
{[%clk 00:25:37]} {[%emt 00:03:54]} Bxd6 {[%clk 00:18:50]} {[%emt 00:04:25]} 29.
exd6 {[%clk 00:25:46]} {[%emt 00:00:21]} Qxd6 {[%clk 00:19:05]} {[%emt
00:00:15]} 30. Qxd6 {[%clk 00:26:09]} {[%emt 00:00:06]} Rxd6 {[%clk 00:19:31]}
{[%emt 00:00:04]} 31. Bc5 {[%clk 00:26:34]} {[%emt 00:00:05]} Rfd8 {[%clk
00:19:59]} {[%emt 00:00:02]} 32. Bxd6 {[%clk 00:26:39]} {[%emt 00:00:25]} Rxd6
{[%clk 00:20:25]} {[%emt 00:00:04]} 33. Rad1 {[%clk 00:26:55]} {[%emt
00:00:14]} Bd5 {[%clk 00:18:08]} {[%emt 00:02:48]} 34. Rd4 {[%clk 00:24:34]}
{[%emt 00:02:51]} Kg7 {[%clk 00:17:45]} {[%emt 00:00:53]} 35. Re1 {[%clk
00:24:25]} {[%emt 00:00:39]} Rb6 {[%clk 00:17:47]} {[%emt 00:00:28]} 36. f4
{[%clk 00:21:45]} {[%emt 00:03:09]} Kf6 {[%clk 00:17:34]} {[%emt 00:00:43]} 37.
g4 {[%clk 00:21:35]} {[%emt 00:00:40]} Rb8 {[%clk 00:15:17]} {[%emt 00:02:48]}
38. Kh2 {[%clk 00:19:22]} {[%emt 00:02:42]} Rg8 {[%clk 00:13:42]} {[%emt
00:02:06]} 39. Kg3 {[%clk 00:19:00]} {[%emt 00:00:52]} h5 {[%clk 00:12:35]}
{[%emt 00:01:37]} 40. g5+ {[%clk 00:18:56]} {[%emt 00:00:34]} Kg7 {[%clk
00:12:57]} {[%emt 00:00:09]} 41. a3 {[%clk 00:13:10]} {[%emt 00:06:16]} Rb8
{[%clk 00:13:05]} {[%emt 00:00:21]} 42. Rd2 {[%clk 00:05:40]} {[%emt 00:08:00]}
a5 {[%clk 00:13:12]} {[%emt 00:00:24]} 43. Re3 {[%clk 00:03:49]} {[%emt
00:02:21]} Kf8 {[%clk 00:13:24]} {[%emt 00:00:18]} 44. Re5 {[%clk 00:03:30]}
{[%emt 00:00:48]} Rb6 {[%clk 00:12:12]} {[%emt 00:01:43]} 45. Re3 {[%emt
00:01:54]} 1/2-1/2

[Event "Polofinale MCR junioru 2023"]
[Site "Czech Republic"]
[Date "2023.11.16"]
[Round "7.24"]
[White "Svadlenka, Michal"]
[Black "Pressler, Tobias"]
[Result "1-0"]
[TimeControl "90 min per 40 moves + 15 min + 30 sec / move from move 1"]
[WhiteFideId "23717068"]
[BlackFideId "23715359"]
[WhiteElo "1689"]
[BlackElo "1937"]

1. e4 {[%clk 01:30:44]} {[%emt 00:00:15]} c5 {[%clk 01:29:10]} {[%emt
00:01:50]} 2. Nf3 {[%clk 01:31:08]} {[%emt 00:00:06]} Nc6 {[%clk 01:29:31]}
{[%emt 00:00:09]} 3. d4 {[%clk 01:31:32]} {[%emt 00:00:06]} cxd4 {[%clk
01:29:53]} {[%emt 00:00:08]} 4. Nxd4 {[%clk 01:31:58]} {[%emt 00:00:05]} g6
{[%clk 01:30:17]} {[%emt 00:00:06]} 5. Nc3 {[%clk 01:32:15]} {[%emt 00:00:13]}
Bg7 {[%clk 01:30:41]} {[%emt 00:00:05]} 6. Be3 {[%clk 01:32:18]} {[%emt
00:00:28]} Nf6 {[%clk 01:30:43]} {[%emt 00:00:28]} 7. f3 {[%clk 01:32:09]}
{[%emt 00:00:39]} O-O {[%clk 01:29:08]} {[%emt 00:02:05]} 8. Bc4 {[%clk
01:29:27]} {[%emt 00:03:12]} d6 {[%clk 01:27:42]} {[%emt 00:01:55]} 9. Qd2
{[%clk 01:29:40]} {[%emt 00:00:17]} Bd7 {[%clk 01:27:49]} {[%emt 00:00:24]} 10.
O-O-O {[%clk 01:30:01]} {[%emt 00:00:09]} Rc8 {[%clk 01:24:20]} {[%emt
00:03:59]} 11. Bb3 {[%clk 01:30:19]} {[%emt 00:00:12]} Bh8 {[%clk 01:22:38]}
{[%emt 00:02:12]} 12. g4 {[%clk 01:30:04]} {[%emt 00:00:45]} Ne5 {[%clk
01:22:42]} {[%emt 00:00:26]} 13. h4 {[%clk 01:29:16]} {[%emt 00:01:18]} Nc4
{[%clk 01:21:35]} {[%emt 00:01:37]} 14. Bxc4 {[%clk 01:29:33]} {[%emt
00:00:14]} Rxc4 {[%clk 01:22:00]} {[%emt 00:00:05]} 15. h5 {[%clk 01:28:47]}
{[%emt 00:01:16]} a6 {[%clk 01:22:01]} {[%emt 00:00:29]} 16. hxg6 {[%clk
01:28:35]} {[%emt 00:00:42]} fxg6 {[%clk 01:21:36]} {[%emt 00:00:56]} 17. e5
{[%clk 01:14:58]} {[%emt 00:14:07]} Nxg4 {[%clk 01:09:20]} {[%emt 00:12:46]} 18.
fxg4 {[%clk 01:14:27]} {[%emt 00:01:00]} Bxg4 {[%clk 01:09:29]} {[%emt
00:00:21]} 19. Qg2 {[%clk 00:50:31]} {[%emt 00:24:26]} Qc8 {[%clk 00:54:15]}
{[%emt 00:15:44]} 20. Nd5 {[%clk 00:44:00]} {[%emt 00:07:02]} Rf7 {[%clk
00:48:03]} {[%emt 00:06:42]} 21. Nb6 {[%clk 00:41:25]} {[%emt 00:03:05]} Qc7
{[%clk 00:47:35]} {[%emt 00:00:58]} 22. Rdf1 {[%clk 00:37:34]} {[%emt
00:04:20]} Qxb6 {[%clk 00:40:14]} {[%emt 00:07:52]} 23. Rxf7 {[%clk 00:37:29]}
{[%emt 00:00:34]} Rxd4 {[%clk 00:40:33]} {[%emt 00:00:11]} 24. Bxd4 {[%clk
00:35:30]} {[%emt 00:02:30]} Qxd4 {[%clk 00:40:53]} {[%emt 00:00:10]} 25. Qf1
{[%clk 00:31:51]} {[%emt 00:04:09]} Bg7 {[%clk 00:40:45]} {[%emt 00:00:37]} 26.
Rxe7 {[%clk 00:31:39]} {[%emt 00:00:41]} Bf5 {[%clk 00:40:05]} {[%emt
00:01:11]} 27. Qf3 {[%clk 00:25:57]} {[%emt 00:06:13]} d5 {[%clk 00:33:06]}
{[%emt 00:07:29]} 28. Rd1 {[%clk 00:10:47]} {[%emt 00:15:40]} Bh6+ {[%clk
00:33:02]} {[%emt 00:00:35]} 29. Kb1 {[%clk 00:11:10]} {[%emt 00:00:06]} Bxc2+
{[%clk 00:33:21]} {[%emt 00:00:11]} 30. Kxc2 {[%clk 00:10:46]} {[%emt
00:00:54]} Qc5+ {[%clk 00:33:45]} {[%emt 00:00:05]} 31. Kb1 {[%clk 00:07:48]}
{[%emt 00:03:28]} Qxe7 {[%clk 00:34:09]} {[%emt 00:00:07]} 32. Qxd5+ {[%clk
00:07:53]} {[%emt 00:00:25]} Kg7 {[%clk 00:33:02]} {[%emt 00:01:36]} 33. e6
{[%clk 00:07:07]} {[%emt 00:01:16]} Bg5 {[%clk 00:32:42]} {[%emt 00:00:51]} 34.
Qe4 {[%clk 00:06:40]} {[%emt 00:00:57]} Kh6 {[%clk 00:32:37]} {[%emt 00:00:35]}
35. Rd7 {[%clk 00:05:40]} {[%emt 00:01:30]} Qf6 {[%clk 00:33:02]} {[%emt
00:00:05]} 36. Rf7 {[%clk 00:05:15]} {[%emt 00:00:54]} Qd8 {[%clk 00:33:15]}
{[%emt 00:00:17]} 37. Qh1+ {[%clk 00:05:29]} {[%emt 00:00:16]} Bh4 {[%clk
00:33:16]} {[%emt 00:00:30]} 38. e7 {[%clk 00:05:25]} {[%emt 00:00:34]} 1-0

[Event "Polofinale MCR junioru 2023"]
[Site "Czech Republic"]
[Date "2023.11.16"]
[Round "7.25"]
[White "Vylicil, Adam"]
[Black "Mrazek, Adam"]
[Result "1-0"]
[TimeControl "90 min per 40 moves + 15 min + 30 sec / move from move 1"]
[WhiteFideId "23717556"]
[BlackFideId "23725010"]
[WhiteElo "1896"]
[BlackElo "1643"]

1. d4 {[%clk 01:22:12]} {[%emt 00:08:43]} Nf6 {[%clk 01:30:48]} {[%emt
00:00:16]} 2. c4 {[%clk 01:22:31]} {[%emt 00:00:11]} g6 {[%clk 01:31:02]}
{[%emt 00:00:16]} 3. Nc3 {[%clk 01:22:20]} {[%emt 00:00:41]} Bg7 {[%clk
01:30:44]} {[%emt 00:00:48]} 4. e4 {[%clk 01:22:14]} {[%emt 00:00:36]} d6
{[%clk 01:30:56]} {[%emt 00:00:18]} 5. Be2 {[%clk 01:22:03]} {[%emt 00:00:41]}
O-O {[%clk 01:30:48]} {[%emt 00:00:39]} 6. Nf3 {[%clk 01:22:30]} {[%emt
00:00:03]} e5 {[%clk 01:30:56]} {[%emt 00:00:22]} 7. O-O {[%clk 01:22:50]}
{[%emt 00:00:09]} Nc6 {[%clk 01:31:21]} {[%emt 00:00:05]} 8. d5 {[%clk
01:22:49]} {[%emt 00:00:31]} Ne7 {[%clk 01:31:46]} {[%emt 00:00:06]} 9. Ne1
{[%clk 01:23:18]} {[%emt 00:00:02]} Nd7 {[%clk 01:32:09]} {[%emt 00:00:07]} 10.
Nd3 {[%clk 01:23:43]} {[%emt 00:00:04]} f5 {[%clk 01:32:33]} {[%emt 00:00:07]}
11. f3 {[%clk 01:24:08]} {[%emt 00:00:05]} f4 {[%clk 01:32:57]} {[%emt
00:00:06]} 12. b4 {[%clk 01:24:15]} {[%emt 00:00:23]} g5 {[%clk 01:32:42]}
{[%emt 00:00:45]} 13. a4 {[%clk 01:23:32]} {[%emt 00:01:13]} Nf6 {[%clk
01:30:28]} {[%emt 00:02:45]} 14. a5 {[%clk 01:23:31]} {[%emt 00:00:31]} Ng6
{[%clk 01:30:15]} {[%emt 00:00:43]} 15. c5 {[%clk 01:23:13]} {[%emt 00:00:48]}
Rf7 {[%clk 01:13:18]} {[%emt 00:17:26]} 16. Nf2 {[%clk 01:16:25]} {[%emt
00:07:18]} h5 {[%clk 01:05:15]} {[%emt 00:08:34]} 17. Kh1 {[%clk 01:16:40]}
{[%emt 00:00:14]} Bf8 {[%clk 00:56:03]} {[%emt 00:09:42]} 18. c6 {[%clk
01:14:05]} {[%emt 00:03:06]} Rg7 {[%clk 00:49:14]} {[%emt 00:07:20]} 19. Rg1
{[%clk 01:04:33]} {[%emt 00:10:00]} Nh8 {[%clk 00:22:45]} {[%emt 00:26:59]} 20.
g3 {[%clk 00:59:04]} {[%emt 00:05:59]} fxg3 {[%clk 00:18:23]} {[%emt 00:04:52]}
21. Rxg3 {[%clk 00:52:17]} {[%emt 00:07:17]} Nh7 {[%clk 00:13:54]} {[%emt
00:05:00]} 22. cxb7 {[%clk 00:42:12]} {[%emt 00:10:36]} Bxb7 {[%clk 00:14:12]}
{[%emt 00:00:11]} 23. a6 {[%clk 00:42:38]} {[%emt 00:00:04]} Bc8 {[%clk
00:14:27]} {[%emt 00:00:15]} 24. Be3 {[%clk 00:42:50]} {[%emt 00:00:17]} Ng6
{[%clk 00:07:57]} {[%emt 00:07:02]} 25. Nb5 {[%clk 00:40:25]} {[%emt 00:02:55]}
Nf4 {[%clk 00:05:51]} {[%emt 00:02:35]} 26. Bc4 {[%clk 00:18:27]} {[%emt
00:22:28]} g4 {[%clk 00:03:26]} {[%emt 00:02:55]} 27. fxg4 {[%clk 00:16:45]}
{[%emt 00:02:12]} Qh4 {[%clk 00:03:14]} {[%emt 00:00:43]} 28. Qg1 {[%clk
00:07:57]} {[%emt 00:09:18]} Bxg4 {[%clk 00:02:50]} {[%emt 00:00:54]} 29. Nxg4
{[%clk 00:04:44]} {[%emt 00:03:43]} hxg4 {[%clk 00:02:58]} {[%emt 00:00:22]} 30.
Nxa7 {[%clk 00:02:27]} {[%emt 00:02:48]} Nf6 {[%clk 00:03:14]} {[%emt
00:00:13]} 31. Qb1 {[%clk 00:00:51]} {[%emt 00:02:06]} Rh7 {[%clk 00:02:49]}
{[%emt 00:00:56]} 32. Qg1 {[%clk 00:01:12]} {[%emt 00:00:09]} Rg7 {[%clk
00:02:39]} {[%emt 00:00:40]} 33. Qb1 {[%clk 00:01:30]} {[%emt 00:00:12]} N6h5
{[%clk 00:01:52]} {[%emt 00:01:17]} 34. Qg1 {[%clk 00:00:52]} {[%emt 00:01:08]}
Nxg3+ {[%clk 00:00:47]} {[%emt 00:01:36]} 35. Qxg3 {[%clk 00:01:11]} {[%emt
00:00:11]} Qxg3 {[%clk 00:00:36]} {[%emt 00:00:41]} 36. hxg3 {[%clk 00:01:40]}
Rh7+ {[%clk 00:00:53]} {[%emt 00:00:13]} 37. Kg1 {[%clk 00:02:05]} {[%emt
00:00:05]} Nh3+ {[%clk 00:01:01]} {[%emt 00:00:22]} 38. Kg2 {[%clk 00:02:31]}
{[%emt 00:00:03]} Ng5 {[%clk 00:01:28]} {[%emt 00:00:04]} 39. Bxg5 {[%clk
00:01:59]} {[%emt 00:01:01]} Rxa7 {[%clk 00:01:40]} {[%emt 00:00:18]} 40. Be3
{[%clk 00:01:56]} {[%emt 00:00:32]} Ra8 {[%clk 00:01:45]} {[%emt 00:00:26]} 41.
a7 {[%clk 00:01:17]} {[%emt 00:01:10]} Bh6 {[%clk 00:14:36]} {[%emt 00:03:08]}
42. Bxh6 {[%clk 00:16:01]} {[%emt 00:01:46]} Rxh6 {[%clk 00:15:00]} {[%emt
00:00:06]} 43. Bb5 {[%clk 00:16:26]} {[%emt 00:00:05]} Kf7 {[%clk 00:13:59]}
{[%emt 00:01:31]} 44. Bc6 {[%clk 00:14:05]} {[%emt 00:02:51]} Rhh8 {[%clk
00:14:14]} {[%emt 00:00:15]} 45. Kf2 {[%clk 00:13:15]} {[%emt 00:01:19]} Ke7
{[%clk 00:10:15]} {[%emt 00:04:30]} 46. Ke3 {[%clk 00:11:41]} {[%emt 00:02:04]}
Raf8 {[%clk 00:05:38]} {[%emt 00:05:07]} 47. Kd3 {[%clk 00:08:04]} {[%emt
00:04:07]} 1-0